[Event "Titled Tuesday Blitz June 15 2021"]
[White "Shahaliyev, Ismayil"]
[Black "Jacobson, Aaron"]
[WhiteFideId "13406388"]
[BlackFideId "2089912"]
[WhiteElo "2105"]
[BlackElo "2260"]
[Result "1/2-1/2"]
[Round "06"]
[TimeControl "180+1"]
[Date "2021.06.15"]
[WhiteClock "0:00:05"]
[BlackClock "0:00:15"]

1. d4 {[%clk 0:03:00]}  d5 {[%clk 0:02:59]} 2. Nf3 {[%clk 0:02:58]}  c5 {[%clk 0:02:59]} 3. c4 {[%clk 0:02:46]}  Nf6 {[%clk 0:02:59]} 4. dxc5 {[%clk 0:02:43]}  e6 {[%clk 0:02:58]} 5. cxd5 {[%clk 0:02:42]}  exd5 {[%clk 0:02:55]} 6. Bg5 {[%clk 0:02:19]}  Bxc5 {[%clk 0:02:55]} 7. e3 {[%clk 0:02:19]}  Qb6 {[%clk 0:02:16]} 8. Bxf6 {[%clk 0:02:12]}  Qxf6 {[%clk 0:02:15]} 9. Nc3 {[%clk 0:02:12]}  Bb4 {[%clk 0:02:11]} 10. Qd4 {[%clk 0:02:01]}  Qxd4 {[%clk 0:02:05]} 11. Nxd4 {[%clk 0:01:55]}  Nc6 {[%clk 0:02:05]} 12. Rd1 {[%clk 0:01:38]}  Bxc3+ {[%clk 0:01:54]} 13. bxc3 {[%clk 0:01:37]}  Be6 {[%clk 0:01:54]} 14. Rb1 {[%clk 0:01:30]}  Na5 {[%clk 0:01:49]} 15. Bd3 {[%clk 0:01:21]}  Ke7 {[%clk 0:01:46]} 16. f4 {[%clk 0:00:58]}  Rhc8 {[%clk 0:01:43]} 17. Kd2 {[%clk 0:00:58]}  g6 {[%clk 0:01:36]} 18. h4 {[%clk 0:00:56]}  Bg4 {[%clk 0:01:24]} 19. Rb5 {[%clk 0:00:44]}  b6 {[%clk 0:01:24]} 20. Rxd5 {[%clk 0:00:44]}  Rc5 {[%clk 0:01:10]} 21. Rxc5 {[%clk 0:00:36]}  bxc5 {[%clk 0:01:11]} 22. Nb3 {[%clk 0:00:34]}  Nxb3+ {[%clk 0:01:03]} 23. axb3 {[%clk 0:00:35]}  Be6 {[%clk 0:00:56]} 24. c4 {[%clk 0:00:34]}  a5 {[%clk 0:00:52]} 25. Ra1 {[%clk 0:00:32]}  Bd7 {[%clk 0:00:52]} 26. Be4 {[%clk 0:00:30]}  Ra6 {[%clk 0:00:45]} 27. Kc3 {[%clk 0:00:29]}  a4 {[%clk 0:00:38]} 28. bxa4 {[%clk 0:00:13]}  Rxa4 {[%clk 0:00:39]} 29. Rxa4 {[%clk 0:00:14]}  Bxa4 {[%clk 0:00:40]} 30. g4 {[%clk 0:00:13]}  h6 {[%clk 0:00:39]} 31. g5 {[%clk 0:00:13]}  hxg5 {[%clk 0:00:38]} 32. hxg5 {[%clk 0:00:14]}  Kd6 {[%clk 0:00:25]} 33. Bd5 {[%clk 0:00:13]}  Be8 {[%clk 0:00:26]} 34. Kd3 {[%clk 0:00:13]}  Ke7 {[%clk 0:00:26]} 35. Ke4 {[%clk 0:00:14]}  f6 {[%clk 0:00:25]} 36. gxf6+ {[%clk 0:00:11]}  Kxf6 {[%clk 0:00:26]} 37. Bb7 {[%clk 0:00:07]}  Bf7 {[%clk 0:00:25]} 38. Bd5 {[%clk 0:00:06]}  Be8 {[%clk 0:00:26]} 39. Bb7 {[%clk 0:00:04]}  Bf7 {[%clk 0:00:26]} 40. Kd3 {[%clk 0:00:04]}  g5 {[%clk 0:00:24]} 41. fxg5+ {[%clk 0:00:04]}  Kxg5 {[%clk 0:00:25]} 42. Bd5 {[%clk 0:00:04]}  Bg6+ {[%clk 0:00:23]} 43. Kc3 {[%clk 0:00:05]}  Kf6 {[%clk 0:00:20]} 44. Kb3 {[%clk 0:00:05]}  Be8 {[%clk 0:00:17]} 45. Kc3 {[%clk 0:00:05]}  Ke5 {[%clk 0:00:18]} 46. Kd2 {[%clk 0:00:06]}  Bd7 {[%clk 0:00:17]} 47. Ke2 {[%clk 0:00:06]}  Be8 {[%clk 0:00:17]} 48. Kf3 {[%clk 0:00:07]}  Bd7 {[%clk 0:00:18]} 49. Kg3 {[%clk 0:00:07]}  Bf5 {[%clk 0:00:15]} 50. Kh4 {[%clk 0:00:07]}  Be4 {[%clk 0:00:15]} 51. Bf7 {[%clk 0:00:07]}  Bd3 {[%clk 0:00:14]} 52. Kg3 {[%clk 0:00:03]}  Ke4 {[%clk 0:00:13]} 53. Kf2 {[%clk 0:00:03]}  Ke5 {[%clk 0:00:13]} 54. Bd5 {[%clk 0:00:03]}  Bf5 {[%clk 0:00:13]} 55. Ke2 {[%clk 0:00:04]}  Bg6 {[%clk 0:00:13]} 56. Kf3 {[%clk 0:00:04]}  Bf5 {[%clk 0:00:13]} 57. Ke2 {[%clk 0:00:05]}  Bg6 {[%clk 0:00:14]} 58. Kd2 {[%clk 0:00:05]}  Bf5 {[%clk 0:00:14]} 59. Kc3 {[%clk 0:00:06]}  Bg6 {[%clk 0:00:14]} 60. Bc6 {[%clk 0:00:06]}  Bf5 {[%clk 0:00:14]} 61. Kb3 {[%clk 0:00:07]}  Be6 {[%clk 0:00:14]} 62. Kc3 {[%clk 0:00:05]}  Bf5 {[%clk 0:00:14]} 63. Bd5 {[%clk 0:00:05]}  Bd7 {[%clk 0:00:15]} 64. Kd3 {[%clk 0:00:04]}  Be8 {[%clk 0:00:15]} 65. Ke2 {[%clk 0:00:05]}  Bg6 {[%clk 0:00:15]} 1/2-1/2


[Site "https://www.chess.com"]

[Event "Titled Tuesday Blitz June 15 2021"]
[White "Sirosh, Ilja"]
[Black "Hess, Robert"]
[WhiteFideId "4500458"]
[BlackFideId "2022036"]
[WhiteElo "2241"]
[BlackElo "2557"]
[Result "1-0"]
[Round "06"]
[TimeControl "180+1"]
[Date "2021.06.15"]
[WhiteClock "0:00:35"]
[BlackClock "0:00:01"]

1. e4 {[%clk 0:03:00]}  g6 {[%clk 0:02:58]} 2. d4 {[%clk 0:03:00]}  Bg7 {[%clk 0:02:49]} 3. Nf3 {[%clk 0:03:00]}  a6 {[%clk 0:02:49]} 4. a4 {[%clk 0:02:58]}  d6 {[%clk 0:02:49]} 5. Be2 {[%clk 0:02:58]}  Nd7 {[%clk 0:02:39]} 6. O-O {[%clk 0:02:57]}  e6 {[%clk 0:02:39]} 7. c4 {[%clk 0:02:44]}  Ne7 {[%clk 0:02:40]} 8. Nc3 {[%clk 0:02:43]}  O-O {[%clk 0:02:32]} 9. Be3 {[%clk 0:02:30]}  h6 {[%clk 0:02:31]} 10. Qd2 {[%clk 0:02:29]}  Kh7 {[%clk 0:02:32]} 11. Rad1 {[%clk 0:02:23]}  f5 {[%clk 0:02:15]} 12. e5 {[%clk 0:02:02]}  dxe5 {[%clk 0:01:57]} 13. dxe5 {[%clk 0:02:03]}  Nc6 {[%clk 0:01:46]} 14. h4 {[%clk 0:01:52]}  Ndxe5 {[%clk 0:01:32]} 15. Qc1 {[%clk 0:01:30]}  Nxf3+ {[%clk 0:01:28]} 16. Bxf3 {[%clk 0:01:30]}  Qxh4 {[%clk 0:01:21]} 17. g3 {[%clk 0:01:28]}  Qxc4 {[%clk 0:01:19]} 18. Kg2 {[%clk 0:01:28]}  Ne5 {[%clk 0:00:48]} 19. Rd4 {[%clk 0:01:26]}  Qb3 {[%clk 0:00:35]} 20. Bxh6 {[%clk 0:00:57]}  Nxf3 {[%clk 0:00:28]} 21. Bxg7 {[%clk 0:00:55]}  Kxg7 {[%clk 0:00:28]} 22. Kxf3 {[%clk 0:00:53]}  Rh8 {[%clk 0:00:14]} 23. Qf4 {[%clk 0:00:47]}  Kf6 {[%clk 0:00:06]} 24. Re1 {[%clk 0:00:44]}  Rh5 {[%clk 0:00:02]} 25. Qxc7 {[%clk 0:00:39]}  b5 {[%clk 0:00:01]} 26. Kg2 {[%clk 0:00:37]}  b4 {[%clk 0:00:01]} 27. Nd5+ {[%clk 0:00:35]} 1-0


[Site "https://www.chess.com"]

[Event "Titled Tuesday Blitz June 15 2021"]
[White "Skliarov, Viktor"]
[Black "Howell, David W L"]
[WhiteFideId "14106736"]
[BlackFideId "410608"]
[WhiteElo "2344"]
[BlackElo "2643"]
[Result "0-1"]
[Round "06"]
[TimeControl "180+1"]
[Date "2021.06.15"]
[WhiteClock "0:00:07"]
[BlackClock "0:00:42"]

1. e4 {[%clk 0:03:00]}  c5 {[%clk 0:02:58]} 2. Nf3 {[%clk 0:03:00]}  Nc6 {[%clk 0:02:57]} 3. Bb5 {[%clk 0:03:00]}  g6 {[%clk 0:02:57]} 4. O-O {[%clk 0:03:00]}  Bg7 {[%clk 0:02:57]} 5. Re1 {[%clk 0:03:01]}  e5 {[%clk 0:02:54]} 6. Bxc6 {[%clk 0:03:00]}  dxc6 {[%clk 0:02:55]} 7. d3 {[%clk 0:03:01]}  b6 {[%clk 0:02:51]} 8. Nbd2 {[%clk 0:02:58]}  Nh6 {[%clk 0:02:50]} 9. Nc4 {[%clk 0:02:55]}  f6 {[%clk 0:02:50]} 10. Bd2 {[%clk 0:02:49]}  Nf7 {[%clk 0:02:48]} 11. a3 {[%clk 0:02:49]}  a5 {[%clk 0:02:47]} 12. b4 {[%clk 0:02:45]}  cxb4 {[%clk 0:02:42]} 13. axb4 {[%clk 0:02:45]}  a4 {[%clk 0:02:43]} 14. Be3 {[%clk 0:02:41]}  Ra6 {[%clk 0:02:23]} 15. d4 {[%clk 0:02:17]}  Be6 {[%clk 0:02:05]} 16. Na3 {[%clk 0:02:10]}  O-O {[%clk 0:01:46]} 17. c4 {[%clk 0:02:05]}  exd4 {[%clk 0:01:34]} 18. Nxd4 {[%clk 0:01:49]}  Bd7 {[%clk 0:01:31]} 19. Nxc6 {[%clk 0:01:37]}  Bxc6 {[%clk 0:01:30]} 20. b5 {[%clk 0:01:37]}  Bxb5 {[%clk 0:01:25]} 21. cxb5 {[%clk 0:01:33]}  Ra8 {[%clk 0:01:18]} 22. Qxd8 {[%clk 0:01:31]}  Rfxd8 {[%clk 0:01:19]} 23. Bxb6 {[%clk 0:01:31]}  Rd3 {[%clk 0:01:16]} 24. Be3 {[%clk 0:00:48]}  f5 {[%clk 0:00:58]} 25. Ra2 {[%clk 0:00:48]}  fxe4 {[%clk 0:00:54]} 26. b6 {[%clk 0:00:45]}  Nd6 {[%clk 0:00:51]} 27. Rb1 {[%clk 0:00:38]}  Rb3 {[%clk 0:00:47]} 28. Rd1 {[%clk 0:00:38]}  Nf5 {[%clk 0:00:45]} 29. Nc4 {[%clk 0:00:14]}  Rb4 {[%clk 0:00:44]} 30. b7 {[%clk 0:00:07]}  Rxb7 {[%clk 0:00:42]} 0-1


[Site "https://www.chess.com"]

[Event "Titled Tuesday Blitz June 15 2021"]
[White "Starozhilov, Leonid"]
[Black "Florescu, Codrut-Constantin"]
[WhiteFideId "14106752"]
[BlackFideId "1202200"]
[WhiteElo "2414"]
[BlackElo "2243"]
[Result "1-0"]
[Round "06"]
[TimeControl "180+1"]
[Date "2021.06.15"]
[WhiteClock "0:00:11"]
[BlackClock "0:00:15"]

1. b3 {[%clk 0:02:41]}  d5 {[%clk 0:02:59]} 2. Bb2 {[%clk 0:02:40]}  Bf5 {[%clk 0:02:59]} 3. Nf3 {[%clk 0:02:40]}  e6 {[%clk 0:02:59]} 4. g3 {[%clk 0:02:37]}  Nf6 {[%clk 0:02:58]} 5. Bg2 {[%clk 0:02:36]}  Be7 {[%clk 0:02:58]} 6. O-O {[%clk 0:02:36]}  O-O {[%clk 0:02:58]} 7. d3 {[%clk 0:02:37]}  c5 {[%clk 0:02:56]} 8. Nbd2 {[%clk 0:02:36]}  Nc6 {[%clk 0:02:55]} 9. e3 {[%clk 0:02:36]}  Rc8 {[%clk 0:02:53]} 10. a3 {[%clk 0:02:33]}  b5 {[%clk 0:02:52]} 11. Qe2 {[%clk 0:02:32]}  c4 {[%clk 0:02:48]} 12. e4 {[%clk 0:02:23]}  cxd3 {[%clk 0:02:48]} 13. cxd3 {[%clk 0:02:23]}  Bg4 {[%clk 0:02:38]} 14. h3 {[%clk 0:02:23]}  Bh5 {[%clk 0:02:37]} 15. g4 {[%clk 0:02:19]}  Bg6 {[%clk 0:02:37]} 16. Nh4 {[%clk 0:02:11]}  dxe4 {[%clk 0:02:30]} 17. Nxg6 {[%clk 0:01:58]}  hxg6 {[%clk 0:02:28]} 18. Nxe4 {[%clk 0:01:42]}  Nd4 {[%clk 0:02:25]} 19. Qd1 {[%clk 0:01:35]}  Qb6 {[%clk 0:02:15]} 20. a4 {[%clk 0:01:22]}  b4 {[%clk 0:02:01]} 21. a5 {[%clk 0:01:22]}  Qd8 {[%clk 0:01:56]} 22. Nd2 {[%clk 0:01:16]}  Nb5 {[%clk 0:01:51]} 23. Nc4 {[%clk 0:01:15]}  Nc3 {[%clk 0:01:50]} 24. Qc2 {[%clk 0:01:14]}  Nfd5 {[%clk 0:01:50]} 25. Rae1 {[%clk 0:01:08]}  Bf6 {[%clk 0:01:49]} 26. Bc1 {[%clk 0:01:04]}  Bd4 {[%clk 0:01:48]} 27. Kh1 {[%clk 0:01:02]}  Nb5 {[%clk 0:01:44]} 28. Be3 {[%clk 0:00:44]}  Qxa5 {[%clk 0:01:35]} 29. h4 {[%clk 0:00:30]}  Qd8 {[%clk 0:01:28]} 30. g5 {[%clk 0:00:25]}  Bc3 {[%clk 0:01:21]} 31. Rb1 {[%clk 0:00:20]}  Nd4 {[%clk 0:01:20]} 32. Qd1 {[%clk 0:00:20]}  Nf5 {[%clk 0:01:16]} 33. Qg4 {[%clk 0:00:15]}  Rxc4 {[%clk 0:01:13]} 34. dxc4 {[%clk 0:00:09]}  Ndxe3 {[%clk 0:01:13]} 35. fxe3 {[%clk 0:00:09]}  Nxe3 {[%clk 0:01:13]} 36. Qe4 {[%clk 0:00:06]}  Nxf1 {[%clk 0:01:12]} 37. Rxf1 {[%clk 0:00:07]}  a5 {[%clk 0:01:09]} 38. Bh3 {[%clk 0:00:07]}  Qd6 {[%clk 0:01:07]} 39. h5 {[%clk 0:00:07]}  gxh5 {[%clk 0:01:03]} 40. g6 {[%clk 0:00:07]}  f5 {[%clk 0:01:00]} 41. Qh4 {[%clk 0:00:07]}  Qd2 {[%clk 0:00:46]} 42. Qxh5 {[%clk 0:00:06]}  Qh6 {[%clk 0:00:46]} 43. Qf3 {[%clk 0:00:06]}  Qxg6 {[%clk 0:00:39]} 44. c5 {[%clk 0:00:07]}  Rc8 {[%clk 0:00:26]} 45. c6 {[%clk 0:00:02]}  Qf6 {[%clk 0:00:26]} 46. Bg2 {[%clk 0:00:02]}  g6 {[%clk 0:00:25]} 47. Rd1 {[%clk 0:00:01]}  Bd4 {[%clk 0:00:24]} 48. Rd3 {[%clk 0:00:02]}  e5 {[%clk 0:00:24]} 49. Qd5+ {[%clk 0:00:02]}  Kh8 {[%clk 0:00:22]} 50. Qd7 {[%clk 0:00:02]}  Rd8 {[%clk 0:00:14]} 51. Rh3+ {[%clk 0:00:03]}  Kg8 {[%clk 0:00:14]} 52. Qh7+ {[%clk 0:00:03]}  Kf8 {[%clk 0:00:14]} 53. c7 {[%clk 0:00:04]}  Rc8 {[%clk 0:00:13]} 54. Qh8+ {[%clk 0:00:04]}  Qxh8 {[%clk 0:00:13]} 55. Rxh8+ {[%clk 0:00:05]}  Ke7 {[%clk 0:00:14]} 56. Rxc8 {[%clk 0:00:06]}  Kd7 {[%clk 0:00:15]} 57. Bb7 {[%clk 0:00:06]}  e4 {[%clk 0:00:14]} 58. Rd8+ {[%clk 0:00:07]}  Kxc7 {[%clk 0:00:14]} 59. Rxd4 {[%clk 0:00:06]}  Kxb7 {[%clk 0:00:15]} 60. Rd5 {[%clk 0:00:07]}  Kb6 {[%clk 0:00:15]} 61. Kg2 {[%clk 0:00:07]}  f4 {[%clk 0:00:14]} 62. Kf2 {[%clk 0:00:07]}  Ka6 {[%clk 0:00:13]} 63. Re5 {[%clk 0:00:07]}  e3+ {[%clk 0:00:12]} 64. Kf3 {[%clk 0:00:07]}  g5 {[%clk 0:00:12]} 65. Rxg5 {[%clk 0:00:07]}  a4 {[%clk 0:00:13]} 66. bxa4 {[%clk 0:00:07]}  b3 {[%clk 0:00:13]} 67. Rb5 {[%clk 0:00:08]}  b2 {[%clk 0:00:13]} 68. Rxb2 {[%clk 0:00:08]}  Ka5 {[%clk 0:00:14]} 69. Ra2 {[%clk 0:00:09]}  Kb4 {[%clk 0:00:14]} 70. Kxf4 {[%clk 0:00:09]}  Kb3 {[%clk 0:00:14]} 71. Re2 {[%clk 0:00:09]}  Kc3 {[%clk 0:00:14]} 72. Rxe3+ {[%clk 0:00:10]}  Kb4 {[%clk 0:00:15]} 73. Re4+ {[%clk 0:00:11]} 1-0


[Site "https://www.chess.com"]

[Event "Titled Tuesday Blitz June 15 2021"]
[White "Sukandar, Irine Kharisma"]
[Black "Jia, Haoxiang"]
[WhiteFideId "7101937"]
[BlackFideId "8602999"]
[WhiteElo "2313"]
[BlackElo "2631"]
[Result "0-1"]
[Round "06"]
[TimeControl "180+1"]
[Date "2021.06.15"]
[WhiteClock "0:00:01"]
[BlackClock "0:01:01"]

1. d4 {[%clk 0:03:00]}  d5 {[%clk 0:02:57]} 2. Nf3 {[%clk 0:03:00]}  Nf6 {[%clk 0:02:54]} 3. Bf4 {[%clk 0:03:00]}  g6 {[%clk 0:02:51]} 4. e3 {[%clk 0:02:49]}  Bg7 {[%clk 0:02:51]} 5. Nc3 {[%clk 0:02:47]}  O-O {[%clk 0:02:51]} 6. Nb5 {[%clk 0:02:45]}  Na6 {[%clk 0:02:48]} 7. Bd3 {[%clk 0:02:38]}  c6 {[%clk 0:02:37]} 8. Nc3 {[%clk 0:02:37]}  c5 {[%clk 0:02:37]} 9. Bxa6 {[%clk 0:02:33]}  bxa6 {[%clk 0:02:37]} 10. dxc5 {[%clk 0:02:32]}  Qa5 {[%clk 0:02:36]} 11. c6 {[%clk 0:02:23]}  Ne4 {[%clk 0:02:32]} 12. O-O {[%clk 0:02:21]}  Nxc3 {[%clk 0:02:31]} 13. bxc3 {[%clk 0:02:21]}  Qxc3 {[%clk 0:02:26]} 14. Qxd5 {[%clk 0:02:16]}  Be6 {[%clk 0:02:25]} 15. Qe4 {[%clk 0:01:52]}  Qc4 {[%clk 0:01:55]} 16. Qxc4 {[%clk 0:01:38]}  Bxc4 {[%clk 0:01:55]} 17. c7 {[%clk 0:01:20]}  Bxf1 {[%clk 0:01:51]} 18. Rxf1 {[%clk 0:01:19]}  Rac8 {[%clk 0:01:51]} 19. Rb1 {[%clk 0:01:11]}  f6 {[%clk 0:01:48]} 20. Rb7 {[%clk 0:01:11]}  e5 {[%clk 0:01:48]} 21. Bg3 {[%clk 0:01:10]}  Rf7 {[%clk 0:01:48]} 22. Rxa7 {[%clk 0:01:10]}  Rfxc7 {[%clk 0:01:47]} 23. Rxa6 {[%clk 0:01:04]}  Rxc2 {[%clk 0:01:47]} 24. h4 {[%clk 0:01:03]}  h5 {[%clk 0:01:41]} 25. Ne1 {[%clk 0:00:51]}  Rc1 {[%clk 0:01:34]} 26. f3 {[%clk 0:00:51]}  Rb8 {[%clk 0:01:30]} 27. Kf1 {[%clk 0:00:41]}  Rb2 {[%clk 0:01:25]} 28. e4 {[%clk 0:00:35]}  Ra1 {[%clk 0:01:22]} 29. Ra8+ {[%clk 0:00:35]}  Kh7 {[%clk 0:01:22]} 30. Bf2 {[%clk 0:00:31]}  Raxa2 {[%clk 0:01:21]} 31. Rxa2 {[%clk 0:00:31]}  Rxa2 {[%clk 0:01:22]} 32. Nd3 {[%clk 0:00:25]}  Bf8 {[%clk 0:01:21]} 33. f4 {[%clk 0:00:21]}  Rd2 {[%clk 0:01:16]} 34. Ne1 {[%clk 0:00:09]}  exf4 {[%clk 0:01:15]} 35. Nf3 {[%clk 0:00:08]}  Ra2 {[%clk 0:01:13]} 36. e5 {[%clk 0:00:08]}  fxe5 {[%clk 0:01:07]} 37. Nxe5 {[%clk 0:00:08]}  Bd6 {[%clk 0:01:08]} 38. Nf3 {[%clk 0:00:08]}  Kg8 {[%clk 0:01:05]} 39. Bd4 {[%clk 0:00:07]}  Kf7 {[%clk 0:01:05]} 40. Ng5+ {[%clk 0:00:07]}  Ke7 {[%clk 0:01:05]} 41. Nf3 {[%clk 0:00:06]}  Ke6 {[%clk 0:01:05]} 42. Ng5+ {[%clk 0:00:06]}  Kf5 {[%clk 0:01:05]} 43. Nf3 {[%clk 0:00:04]}  Kg4 {[%clk 0:01:05]} 44. Bf2 {[%clk 0:00:02]}  Ra5 {[%clk 0:01:00]} 45. Nh2+ {[%clk 0:00:01]}  Kf5 {[%clk 0:01:00]} 46. Nf3 {[%clk 0:00:02]}  Bc5 {[%clk 0:01:01]} 47. Be1 {[%clk 0:00:01]}  Ra1 {[%clk 0:01:01]} 0-1


[Site "https://www.chess.com"]

[Event "Titled Tuesday Blitz June 15 2021"]
[White "Sztokbant, Bernardo Vainzoff"]
[Black "Tsaruk, Maksim"]
[WhiteFideId "2115956"]
[BlackFideId "13511173"]
[WhiteElo "2264"]
[BlackElo "2197"]
[Result "1-0"]
[Round "06"]
[TimeControl "180+1"]
[Date "2021.06.15"]
[WhiteClock "0:00:08"]
[BlackClock "0:00:14"]

1. b3 {[%clk 0:03:00]}  Nf6 {[%clk 0:02:58]} 2. Bb2 {[%clk 0:02:59]}  e6 {[%clk 0:02:49]} 3. Nf3 {[%clk 0:03:00]}  Be7 {[%clk 0:02:44]} 4. e3 {[%clk 0:03:00]}  O-O {[%clk 0:02:45]} 5. Be2 {[%clk 0:03:00]}  c5 {[%clk 0:02:46]} 6. O-O {[%clk 0:03:00]}  b6 {[%clk 0:02:47]} 7. d4 {[%clk 0:03:00]}  Bb7 {[%clk 0:02:48]} 8. c4 {[%clk 0:02:59]}  cxd4 {[%clk 0:02:49]} 9. Nxd4 {[%clk 0:02:59]}  d5 {[%clk 0:02:50]} 10. Nd2 {[%clk 0:02:58]}  Nc6 {[%clk 0:02:48]} 11. Nxc6 {[%clk 0:02:55]}  Bxc6 {[%clk 0:02:49]} 12. Rc1 {[%clk 0:02:52]}  Bb7 {[%clk 0:02:49]} 13. Bf3 {[%clk 0:02:49]}  Rc8 {[%clk 0:02:47]} 14. Qe2 {[%clk 0:02:47]}  a5 {[%clk 0:02:47]} 15. Rfd1 {[%clk 0:02:47]}  Bb4 {[%clk 0:02:41]} 16. a3 {[%clk 0:02:38]}  Bc5 {[%clk 0:02:37]} 17. cxd5 {[%clk 0:02:20]}  exd5 {[%clk 0:02:35]} 18. Nf1 {[%clk 0:02:05]}  Qe7 {[%clk 0:02:32]} 19. a4 {[%clk 0:01:50]}  Ne4 {[%clk 0:02:22]} 20. Ng3 {[%clk 0:01:43]}  g6 {[%clk 0:02:16]} 21. Bxe4 {[%clk 0:01:21]}  dxe4 {[%clk 0:02:14]} 22. Qg4 {[%clk 0:00:56]}  f5 {[%clk 0:02:08]} 23. Qf4 {[%clk 0:00:44]}  Rfd8 {[%clk 0:02:08]} 24. h4 {[%clk 0:00:31]}  Rxd1+ {[%clk 0:01:42]} 25. Rxd1 {[%clk 0:00:31]}  Rd8 {[%clk 0:01:43]} 26. Rxd8+ {[%clk 0:00:26]}  Qxd8 {[%clk 0:01:44]} 27. Qe5 {[%clk 0:00:22]}  Qd6 {[%clk 0:01:04]} 28. Qh8+ {[%clk 0:00:22]}  Kf7 {[%clk 0:01:05]} 29. Qxh7+ {[%clk 0:00:22]}  Ke6 {[%clk 0:01:03]} 30. Qxg6+ {[%clk 0:00:22]}  Kd7 {[%clk 0:01:02]} 31. Qxf5+ {[%clk 0:00:22]}  Kc6 {[%clk 0:00:57]} 32. Qxe4+ {[%clk 0:00:21]}  Kc7 {[%clk 0:00:57]} 33. Qe5 {[%clk 0:00:17]}  Bd5 {[%clk 0:00:57]} 34. Qxd6+ {[%clk 0:00:17]}  Kxd6 {[%clk 0:00:57]} 35. Nf5+ {[%clk 0:00:12]}  Kc7 {[%clk 0:00:50]} 36. Nd4 {[%clk 0:00:13]}  Bxd4 {[%clk 0:00:49]} 37. Bxd4 {[%clk 0:00:14]}  Bxb3 {[%clk 0:00:50]} 38. g4 {[%clk 0:00:15]}  Bxa4 {[%clk 0:00:50]} 39. h5 {[%clk 0:00:12]}  Bc2 {[%clk 0:00:50]} 40. g5 {[%clk 0:00:11]}  b5 {[%clk 0:00:49]} 41. g6 {[%clk 0:00:11]}  b4 {[%clk 0:00:49]} 42. f3 {[%clk 0:00:10]}  a4 {[%clk 0:00:47]} 43. e4 {[%clk 0:00:10]}  a3 {[%clk 0:00:40]} 44. h6 {[%clk 0:00:10]}  b3 {[%clk 0:00:37]} 45. h7 {[%clk 0:00:10]}  b2 {[%clk 0:00:38]} 46. h8=Q {[%clk 0:00:09]}  b1=Q+ {[%clk 0:00:38]} 47. Kh2 {[%clk 0:00:09]}  Qd1 {[%clk 0:00:15]} 48. Qe5+ {[%clk 0:00:10]}  Kb7 {[%clk 0:00:10]} 49. Qd5+ {[%clk 0:00:10]}  Kc8 {[%clk 0:00:04]} 50. Qc5+ {[%clk 0:00:09]}  Kd7 {[%clk 0:00:04]} 51. g7 {[%clk 0:00:05]}  Bb3 {[%clk 0:00:03]} 52. Qa7+ {[%clk 0:00:03]}  Kc6 {[%clk 0:00:02]} 53. Qb6+ {[%clk 0:00:02]}  Kd7 {[%clk 0:00:02]} 54. Qb7+ {[%clk 0:00:02]}  Kd6 {[%clk 0:00:02]} 55. Qb8+ {[%clk 0:00:02]}  Kc6 {[%clk 0:00:02]} 56. g8=Q {[%clk 0:00:02]}  Bxg8 {[%clk 0:00:02]} 57. Qxg8 {[%clk 0:00:03]}  Qxd4 {[%clk 0:00:02]} 58. Qe8+ {[%clk 0:00:01]}  Qd7 {[%clk 0:00:03]} 59. Qa8+ {[%clk 0:00:02]}  Kc5 {[%clk 0:00:02]} 60. Qxa3+ {[%clk 0:00:03]}  Kd4 {[%clk 0:00:02]} 61. Qb2+ {[%clk 0:00:02]}  Ke3 {[%clk 0:00:03]} 62. Qc3+ {[%clk 0:00:02]}  Kf4 {[%clk 0:00:03]} 63. Qc1+ {[%clk 0:00:02]}  Kxf3 {[%clk 0:00:04]} 64. Qf1+ {[%clk 0:00:02]}  Kxe4 {[%clk 0:00:04]} 65. Qg2+ {[%clk 0:00:02]}  Kf4 {[%clk 0:00:04]} 66. Qg3+ {[%clk 0:00:02]}  Ke4 {[%clk 0:00:05]} 67. Qg2+ {[%clk 0:00:02]}  Ke3 {[%clk 0:00:05]} 68. Qg3+ {[%clk 0:00:02]}  Ke2 {[%clk 0:00:05]} 69. Qg2+ {[%clk 0:00:02]}  Ke1 {[%clk 0:00:06]} 70. Qg3+ {[%clk 0:00:02]}  Kd2 {[%clk 0:00:06]} 71. Qg2+ {[%clk 0:00:02]}  Kc3 {[%clk 0:00:07]} 72. Qh3+ {[%clk 0:00:02]}  Kb4 {[%clk 0:00:08]} 73. Qxd7 {[%clk 0:00:02]}  Kc5 {[%clk 0:00:08]} 74. Kg3 {[%clk 0:00:03]}  Kb4 {[%clk 0:00:09]} 75. Kf4 {[%clk 0:00:04]}  Kc4 {[%clk 0:00:09]} 76. Ke4 {[%clk 0:00:05]}  Kc3 {[%clk 0:00:10]} 77. Qc7+ {[%clk 0:00:05]}  Kb4 {[%clk 0:00:11]} 78. Qc6 {[%clk 0:00:05]}  Kb3 {[%clk 0:00:12]} 79. Qc5 {[%clk 0:00:05]}  Ka2 {[%clk 0:00:12]} 80. Qb5 {[%clk 0:00:06]}  Ka1 {[%clk 0:00:12]} 81. Kd3 {[%clk 0:00:06]}  Ka2 {[%clk 0:00:13]} 82. Kc2 {[%clk 0:00:07]}  Ka1 {[%clk 0:00:14]} 83. Qa5# {[%clk 0:00:08]} 1-0


[Site "https://www.chess.com"]

[Event "Titled Tuesday Blitz June 15 2021"]
[White "Tarlabasi, Emirhan"]
[Black "Rustemov, Alexander"]
[WhiteFideId "6350275"]
[BlackFideId "4119002"]
[WhiteElo "1949"]
[BlackElo "2712"]
[Result "0-1"]
[Round "06"]
[TimeControl "180+1"]
[Date "2021.06.15"]
[WhiteClock "0:00:08"]
[BlackClock "0:01:18"]

1. Nf3 {[%clk 0:03:00]}  d5 {[%clk 0:02:58]} 2. c4 {[%clk 0:03:01]}  d4 {[%clk 0:02:57]} 3. e3 {[%clk 0:03:01]}  c5 {[%clk 0:02:57]} 4. exd4 {[%clk 0:03:01]}  cxd4 {[%clk 0:02:57]} 5. d3 {[%clk 0:03:01]}  Nc6 {[%clk 0:02:58]} 6. g3 {[%clk 0:03:02]}  e5 {[%clk 0:02:58]} 7. Bg2 {[%clk 0:03:03]}  Bd6 {[%clk 0:02:58]} 8. O-O {[%clk 0:03:03]}  Nf6 {[%clk 0:02:58]} 9. Re1 {[%clk 0:03:03]}  O-O {[%clk 0:02:58]} 10. a3 {[%clk 0:03:04]}  a5 {[%clk 0:02:58]} 11. b3 {[%clk 0:03:04]}  h6 {[%clk 0:02:56]} 12. Nbd2 {[%clk 0:03:04]}  Bf5 {[%clk 0:02:56]} 13. Qc2 {[%clk 0:03:04]}  Re8 {[%clk 0:02:43]} 14. Rb1 {[%clk 0:03:01]}  Nd7 {[%clk 0:02:40]} 15. Ne4 {[%clk 0:02:41]}  Bf8 {[%clk 0:02:38]} 16. h3 {[%clk 0:01:59]}  Rc8 {[%clk 0:02:33]} 17. Bd2 {[%clk 0:01:56]}  Bxa3 {[%clk 0:02:31]} 18. g4 {[%clk 0:01:45]}  Bxe4 {[%clk 0:02:25]} 19. Rxe4 {[%clk 0:01:46]}  Nc5 {[%clk 0:02:24]} 20. Ree1 {[%clk 0:01:43]}  Bb4 {[%clk 0:02:22]} 21. g5 {[%clk 0:01:35]}  hxg5 {[%clk 0:02:15]} 22. Bxg5 {[%clk 0:01:32]}  Qd6 {[%clk 0:02:06]} 23. Bd2 {[%clk 0:01:21]}  Bxd2 {[%clk 0:02:05]} 24. Qxd2 {[%clk 0:01:22]}  Nb4 {[%clk 0:02:05]} 25. Kf1 {[%clk 0:01:22]}  Ncxd3 {[%clk 0:02:02]} 26. Red1 {[%clk 0:01:20]}  e4 {[%clk 0:02:02]} 27. Ne1 {[%clk 0:01:04]}  Nxe1 {[%clk 0:01:59]} 28. Rxe1 {[%clk 0:00:58]}  f5 {[%clk 0:01:58]} 29. Rbd1 {[%clk 0:00:56]}  Rcd8 {[%clk 0:01:56]} 30. h4 {[%clk 0:00:48]}  Nd3 {[%clk 0:01:51]} 31. Re2 {[%clk 0:00:45]}  b6 {[%clk 0:01:42]} 32. h5 {[%clk 0:00:29]}  Nf4 {[%clk 0:01:41]} 33. Ree1 {[%clk 0:00:27]}  Nxh5 {[%clk 0:01:40]} 34. Qg5 {[%clk 0:00:25]}  g6 {[%clk 0:01:38]} 35. Bh3 {[%clk 0:00:24]}  Qf6 {[%clk 0:01:34]} 36. Qg2 {[%clk 0:00:17]}  Kg7 {[%clk 0:01:31]} 37. f3 {[%clk 0:00:15]}  Qh4 {[%clk 0:01:21]} 38. Bxf5 {[%clk 0:00:11]}  Ng3+ {[%clk 0:01:19]} 39. Kg1 {[%clk 0:00:11]}  gxf5 {[%clk 0:01:18]} 40. fxe4 {[%clk 0:00:10]}  fxe4 {[%clk 0:01:18]} 41. Qb2 {[%clk 0:00:08]} 0-1


[Site "https://www.chess.com"]